Cogmind - Beta 17.1 @@@ ROGUE MODE // 2026.09.14 @ 22:35:38 Player: KURIIRI Result: Self-destructed Performance ------------- Evolutions (3) 1500 Regions Visited (11) 2200 Robots Destroyed (164) 820 Value Destroyed (6829) 6829 Prototype IDs (19) 380 Alien Tech Used (0) 0 Bonus (15224) 15224 TOTAL SCORE: 26953 Bonus ------- High Alert Combat Kills 1290 Follower Combat Kills 1168 Prayed to X0-1V1 5000 Major X0-1V1 Interference 3500 Subatomizer Sterilization 3000 Entered Garrisons 600 Used RIF Installer 1000 Friendly Fire -334 Cogmind --------- Core Integrity 805/900 Matter 161/300 Energy 2073/2278 System Corruption 1% Temperature Cool (0) Movement Flying (50) Location -7/Garrison Parts ------- > --- POWER (1) -------- Fusion-Antimatter Core > --- PROPULSION (4) --- Flying XBT-Titanium Exoskeleton > --- UTILITY (5) ------ Large Storage Unit Spectral Analyzer (fused) Spectral Analyzer (fused) Relay Coupler [Grunt] (29) Self-contained Transmogrifier > --- WEAPON (3) ------- Remote Datajack Shotgun Thermic Plasma Construct/C > --- INVENTORY (15) --- Particle Reactor Field Propulsion Drive Improved Cooling System Large Matter Pod (150) Advanced Targeting Computer Improved Weapon Cycler Medium Reactive Plating Remote Force Field Relay Coupler [NC] (41) Relay Coupler [Hunter] (23) Relay Coupler [Behemoth] (13) Long-range Proton Cannon Heavy Missile Launcher Peak State ------------ > --- POWER ------------ Fusion-Antimatter Core > --- PROPULSION ------- Flying XBT-Titanium Exoskeleton > --- UTILITY ---------- Armored Scrap Engine Large Storage Unit Hacking Suite X0-1V1's Piety Tracker > --- WEAPON ----------- Heavy Missile Launcher Remote Datajack Shotgun Thermic Plasma Construct/C > --- INVENTORY -------- Improved Airjet Xenon Bombardment Thruster Large Matter Pod Improved Kinecellerator Medium Reactive Plating Improved Shield Generator Relay Coupler [NC] Relay Coupler [Sentry] Relay Coupler [Sentry] Improved Dynamic Insulation System Plasma Cannon Gauss Rifle Mini Grenade Launcher Remote Datajack Makeshift Hammer [Rating: 79] Favorites ----------- Power Constructs Engine Heavy Ion Engine Power Core Constructs Propulsion Light Treads Treads Light Treads Leg Aluminum Leg Wheel Wheel Flight Unit Constructs Utility Armored Scrap Engine Device Armored Scrap Engine Storage Large Storage Unit Processor Advanced Targeting Computer Hackware Hacking Suite Protection Light Armor Plating Weapon Constructs Energy Gun Constructs Energy Cannon Constructs Ballistic Gun Assault Rifle Ballistic Cannon Gauss Cannon Launcher Mini Grenade Launcher Special Weapon Remote Datajack Impact Weapon Makeshift Hammer Piercing Weapon Spear Build | -11 -10 -9 -9 -9 -9 -7 -7 -7 -7 -7 -7 ------- Run | Yrd Mat Mat Sto Gar Rec Fac Was Fac Gar Fac Gar Slots Evolved 6 | . . 2 . . . 4 . . . . . Power . | . . . . . . . . . . . . Propulsion 2 | . . 1 . . . 1 . . . . . Utility 3 | . . . . . . 3 . . . . . Weapon 1 | . . 1 . . . . . . . . . Parts Attached 74 | 4 11 9 7 6 6 4 . 12 4 . 11 Power 2 | . 1 1 . . . . . . . . . Engine 2 | . 1 1 . . . . . . . . . Core . | . . . . . . . . . . . . Reactor . | . . . . . . . . . . . . Propulsion 12 | 2 3 2 3 2 . . . . . . . Treads 10 | 2 1 2 3 2 . . . . . . . Leg . | . . . . . . . . . . . . Wheel 2 | . 2 . . . . . . . . . . Hover . | . . . . . . . . . . . . Flight . | . . . . . . . . . . . . Utility 30 | 1 2 2 1 1 4 3 . 6 3 . 7 Device 8 | 1 1 1 . . 1 2 . 1 . . 1 Storage 3 | . 1 . . . 1 . . 1 . . . Processor 3 | . . . . . . . . 3 . . . Hackware 14 | . . 1 . . 2 1 . 1 3 . 6 Protection 2 | . . . 1 1 . . . . . . . Artifact . | . . . . . . . . . . . . Weapon 30 | 1 5 4 3 3 2 1 . 6 1 . 4 Energy Gun 8 | . 2 1 2 2 . . . 1 . . . Energy Cannon 2 | . . . . . . . . 1 1 . . Ballistic Gun 7 | 1 1 3 1 . . . . . . . 1 Ballistic Cannon 1 | . . . . . . . . 1 . . . Launcher 7 | . 2 . . 1 . . . 3 . . 1 Special Weapon 4 | . . . . . 1 1 . . . . 2 Impact Weapon 1 | . . . . . 1 . . . . . . Slashing Weapon . | . . . . . . . . . . . . Piercing Weapon . | . . . . . . . . . . . . Special Melee Weapon . | . . . . . . . . . . . . Unidentified Prototypes 7 | . 1 2 . . 1 . . 3 . . . Parts Lost 10 | . 1 4 2 2 . . . . . . 1 Power 1 | . . 1 . . . . . . . . . Propulsion 5 | . 1 3 1 . . . . . . . . Utility 1 | . . . . . . . . . . . 1 Weapon 3 | . . . 1 2 . . . . . . . Highest Loss Streak 4 | . 1 4 2 1 . . . . . . 1 To Critical Strikes . | . . . . . . . . . . . . Average Backups 10 | 5 9 8 9 9 5 10 14 13 13 14 14 Power . | 1 . . . . . . . . . 1 1 Propulsion 1 | 3 2 2 . 1 . 1 2 1 2 2 1 Utility 3 | . 1 . . . 2 3 7 7 8 8 9 Weapon 3 | 1 4 5 9 6 2 3 4 3 3 3 2 Tool/Special . | . . . . . . . . . . . . Unused Backups 37 | . 6 . . 2 3 3 1 4 2 2 14 Power 4 | . 2 . . . 1 . . . . . 1 Propulsion 8 | . . . . 1 1 1 . 1 1 1 2 Utility 17 | . 3 . . 1 . . 1 2 . 1 9 Weapon 8 | . 1 . . . 1 2 . 1 1 . 2 Tool/Special . | . . . . . . . . . . . . Average Slot Usage (%) 72 | . 99 85 98 99 63 60 56 55 60 61 60 Engine 6 | . 14 6 11 11 10 7 1 . . . . Reactor 1 | . . . . . . . 5 7 7 . . Treads 13 | . 27 17 18 33 14 2 . . . . . Flight 2 | . . . . . . . 3 7 7 7 7 Device 9 | . 14 10 10 . 9 18 13 12 7 7 7 Storage 7 | . 14 11 11 11 1 7 6 7 7 7 7 Processor 1 | . . . . . . . . 4 7 7 . Hackware 3 | . . . . . 1 3 6 5 7 7 13 Protection 1 | . . . . 11 . . . . . . . Energy Gun 9 | . 4 . 10 25 18 2 . . . . . Energy Cannon 2 | . . . . . . 3 6 7 9 7 7 Ballistic Gun 4 | . 23 32 22 . . . . . . . 1 Launcher 1 | . . . . 7 . . 2 . . . . Special Weapon 1 | . . . . . 1 . 6 1 3 7 5 Impact Weapon 1 | . . . . . 3 6 . . . . . Peak Build Rating 79 | 7 21 28 28 22 44 72 79 79 71 69 76 Average Rating 43 | 6 8 23 26 17 36 65 77 71 68 68 70 On Entrance 40 | 6 7 21 28 15 22 40 68 79 66 68 68 Avg Prop Armor Cover (%) 9 | . . 9 10 . . . . . . . . Naked Turns . | . . . . . . . . . . . . Heaviest Build 47 | 13 18 28 30 32 42 44 47 46 45 39 47 Greatest Support 92 | 40 40 60 60 60 70 82 92 92 92 92 92 Greatest Overweight (x) 2 | . . 1 2 . . . . . . . . Average Overweight (x) . | . . . . . . . . . . . . Largest Inventory Capacity 15 | 8 10 10 10 10 15 15 15 15 15 15 15 Average Capacity 11 | 8 9 10 10 10 6 15 15 15 15 15 15 Most Carried 15 | 6 10 10 10 10 12 15 15 15 15 15 15 Average Carried 10 | 4 9 8 9 9 5 10 14 14 14 14 14 Final Capacity 15 | 8 10 10 10 10 5 15 15 15 15 15 15 Final Carried 15 | 4 10 10 10 10 5 13 15 15 15 15 13 Scrap Engine Consumption 44 | . . . . . 26 12 3 2 . 1 . Constructs Created 4 | . . . . . 3 1 . . . . . Constructs Modified 18 | . . . . . 5 4 4 . 4 1 . Transmogrified Parts 2 | . . . . . . . . . . . 2 Integrity Recovered 2 | . . . . . . . . . . . 2 Class Distribution -------------------- 44% | Construct 14% | Scavenger-Tank 14% | Mutant 11% | Commander-Construct 5% | Bothacker-Construct 4% | Gunner Dominant Class ---------------- Mutant | -10/Materials Gunner | -9/Materials Gunner | -9/Storage Scavenger-Tank | -9/Garrison Construct | -9/Recycling Construct | -7/Factory Construct | -7/Waste Commander-Construct | -7/Factory Construct | -7/Garrison Construct | -7/Factory Bothacker-Construct | -7/Garrison Resources | -11 -10 -9 -9 -9 -9 -7 -7 -7 -7 -7 -7 ----------- Run | Yrd Mat Mat Sto Gar Rec Fac Was Fac Gar Fac Gar Matter Collected 5265 | 242 475 400 323 603 353 60 561 565 687 445 551 Remotely . | . . . . . . . . . . . . Salvage Created 7028 | 123 545 776 324 741 412 39 1053 687 1279 389 660 Parts 308 | 10 47 39 19 46 19 3 5 35 39 16 30 Haulers Intercepted 4 | . 1 2 . . . . . 1 . . . Recyclers Shooed 1 | . 1 . . . . . . . . . . Parts Field Recycled . | . . . . . . . . . . . . Retrieved Matter . | . . . . . . . . . . . . Parts Self-Destructed . | . . . . . . . . . . . . Prevented . | . . . . . . . . . . . . Parts Restored . | . . . . . . . . . . . . Kills | -11 -10 -9 -9 -9 -9 -7 -7 -7 -7 -7 -7 ------- Run | Yrd Mat Mat Sto Gar Rec Fac Was Fac Gar Fac Gar Combat Hostiles Destroyed 135 | . 15 20 7 22 4 3 6 16 20 6 16 Guns 42 | . 10 16 7 5 4 . . . . . . Cannons 40 | . . . . . . 2 1 9 10 6 12 AOE 51 | . 5 4 . 17 . . 5 7 9 . 4 Classes Destroyed 17 | 2 6 1 . 3 1 . 1 1 2 . . Worker 4 | . . . . . . . . 2 . 2 . Builder 3 | . 1 . . . . . . 1 . 1 . Tunneler 2 | 1 . . . . . . . 1 . . . Hauler 4 | . 1 2 . . . . . 1 . . . Recycler 2 | 1 . . . . 1 . . . . . . Operator 4 | . 1 . . . . . . 3 . . . Watcher 5 | . 2 . 1 . . . . 1 . 1 . Swarmer 33 | . 5 4 . 9 . 3 . 4 . . 8 Grunt 58 | . 10 14 5 8 . . . 7 11 3 . Brawler 3 | . . . . . . . . . 3 . . Duelist 3 | . . . . 1 . . . . 2 . . Sentry 16 | . . 2 2 3 2 . . 3 2 1 1 Specialist 2 | . . . . . . . . . 2 . . Hunter 7 | . . . . 1 . . . 1 3 1 1 Programmer 9 | . . . . 1 . . . 1 . 1 6 Compactor 6 | . . . . . . . 6 . . . . Scrapper 3 | . . . . . 3 . . . . . . Best Kill Streak 10 | 2 5 10 8 7 2 3 3 9 10 4 4 Combat Bots Only 10 | . 5 10 7 7 2 3 3 6 10 3 4 Max Kills in Single Turn 4 | 1 4 4 1 3 1 1 1 4 3 1 4 Gunslinging 1 | . . 1 . . . . . . . . . Exploded 4 | . 3 4 . 3 . . 1 3 2 . 4 Melee . | . . . . . . . . . . . . Uniques/NPCs Destroyed . | . . . . . . . . . . . . Combat | -11 -10 -9 -9 -9 -9 -7 -7 -7 -7 -7 -7 -------- Run | Yrd Mat Mat Sto Gar Rec Fac Was Fac Gar Fac Gar Hostile Shots Fired 518 | . 63 78 28 42 15 58 . 45 104 37 48 Missed 221 | . 17 29 7 12 3 32 . 19 59 23 20 Hits 297 | . 46 49 21 30 12 26 . 26 45 14 28 Melee 2 | . . . . . . . . . 2 . . Projectile 295 | . 46 49 21 30 12 26 . 26 43 14 28 Critical Strikes 13 | . 1 4 3 1 2 . . 1 1 . . Damage Taken 3963 | . 500 716 280 474 251 264 41 357 583 180 317 Core 542 | . 83 122 26 34 54 44 . 60 43 38 38 Absorbed by Shields 61 | . . . . . . . . . . . 61 Ignored by Resistances 34 | . . . . 6 28 . . . . . . Regen/Repaired (Parts) 453 | . . . . . . 12 196 . 240 5 . Core Remaining (%) 87 | 100 66 . . . 97 . . . . . . Volleys Fired 492 | 4 55 36 16 56 13 13 25 37 106 29 102 Largest 3 | 2 2 3 3 3 3 1 1 1 2 1 2 Hottest 202 | 60 90 69 69 188 188 61 61 122 202 73 96 Shots Fired 715 | 8 107 106 46 92 34 13 25 37 115 29 103 Gun 432 | 8 103 105 46 73 33 . . . . . 64 Cannon 171 | . . . . . . 13 3 30 78 22 25 Launcher 62 | . 4 1 . 19 . . 22 6 9 . 1 Special 50 | . . . . . 1 . . 1 28 7 13 Kinetic 324 | 4 97 105 46 . 4 . . . 4 . 64 Thermal 220 | . . . . 24 29 13 3 30 74 22 25 Explosive 62 | . 4 1 . 19 . . 22 6 9 . 1 Electromagnetic 59 | 4 6 . . 49 . . . . . . . Robot Hit Streak 42 | 2 12 11 28 22 26 11 9 7 42 14 38 Robot Miss Streak 6 | 2 4 6 1 5 2 4 2 3 2 2 3 Penetration Max . | . . . . . . . . . . . . Secondary Targets 9 | . . 7 2 . . . . . . . . Max Gunslinging Chain 1 | . . 1 1 . . . . . . . . Shots Hit Robots 512 | 3 70 71 38 41 27 11 17 25 95 24 90 Core Hits 286 | 3 32 29 14 47 11 7 12 26 50 12 43 Critical Kills 1 | . . 1 . . . . . . . . . Critical Parts Destroyed 3 | . . . . . . . . . . . 3 Critical Strikes 9 | . . 1 . 1 4 . . . . . 3 Burn 4 | . . . . . 4 . . . . . . Destroy 4 | . . 1 . . . . . . . . 3 Corrupt 1 | . . . . 1 . . . . . . . Melee Attacks 3 | . . . . . 1 2 . . . . . Impact 2 | . . . . . . 2 . . . . . Slashing . | . . . . . . . . . . . . Piercing 1 | . . . . . 1 . . . . . . Sneak Attacks 1 | . . . . . 1 . . . . . . Combat Hostiles . | . . . . . . . . . . . . Follow-up Attacks . | . . . . . . . . . . . . Damage Inflicted 18346 | 37 1228 1310 652 2341 554 260 3495 2259 3803 757 1650 Guns 4209 | 37 886 1086 645 635 462 . . . . . 458 Cannons 5406 | . . . . . . 260 159 1025 2288 757 917 Explosions 8619 | . 342 220 . 1701 . . 3336 1230 1515 . 275 Melee 61 | . . . . . 61 . . . . . . Ramming 51 | . . 4 7 5 31 . . 4 . . . Kinetic 3340 | 25 832 1086 645 . 47 . 85 . 162 . 458 Thermal 6380 | . . . . 341 415 260 74 1490 2126 757 917 Explosive 8154 | . 342 220 . 1701 . . 3336 765 1515 . 275 Electromagnetic 360 | 12 54 . . 294 . . . . . . . Impact . | . . . . . . . . . . . . Slashing . | . . . . . . . . . . . . Piercing 61 | . . . . . 61 . . . . . . Highest Corruption 11 | . 1 . . 1 11 2 2 4 1 . 1 Average Corruption 1 | . 1 . . 1 11 1 2 1 1 . 1 Corruption Purged . | . . . . . . . . . . . . Corruption Blocked . | . . . . . . . . . . . . Effects 18 | . 9 . . 2 3 . . 3 . . 1 Message Errors 3 | . 2 . . . 1 . . . . . . Matter Fused 4 | . 3 . . . . . . . . . 1 Heat Flow Errors 2 | . . . . . 2 . . . . . . Energy Discharges 3 | . 1 . . . . . . 2 . . . Parts Fused 1 | . 1 . . . . . . . . . . Data Loss (minor) 1 | . . . . . . . . 1 . . . Data Loss (major) 2 | . 1 . . 1 . . . . . . . Alerts 2 | . 1 . . 1 . . . . . . . Overload Shots . | . . . . . . . . . . . . Overflow Damage 309 | . 11 . . 52 . . . 146 36 . 64 Projectiles 33 | . . . . . . . . . 14 . 19 Explosions 276 | . 11 . . 52 . . . 146 22 . 45 Melee . | . . . . . . . . . . . . Knockbacks . | . . . . . . . . . . . . Impact . | . . . . . . . . . . . . Kinetic . | . . . . . . . . . . . . Secondary . | . . . . . . . . . . . . Self-Inflicted Damage 165 | . . . . 116 . . 43 2 4 . . Shots 6 | . . . . 3 . . 2 . 1 . . Rammed 10 | . 1 1 1 2 4 . . 1 . . . Targets Rammed 10 | . 1 1 1 2 4 . . 1 . . . Kicked . | . . . . . . . . . . . . Crushed . | . . . . . . . . . . . . Highest Temperature 269 | . 108 120 180 185 269 . . 157 182 . 11 Average Temperature 51 | . 36 30 66 104 82 . . 45 44 . 11 Received Heat Transfer 1373 | . 270 294 165 69 179 48 . 84 222 24 18 Siege Activations . | . . . . . . . . . . . . Martial Activations . | . . . . . . . . . . . . Shielding Activations . | . . . . . . . . . . . . Robots Disrupted . | . . . . . . . . . . . . Combat Hostiles . | . . . . . . . . . . . . Robots Corrupted . | . . . . . . . . . . . . Combat Hostiles . | . . . . . . . . . . . . Parts Fried 1 | . 1 . . . . . . . . . . Impact Corruptions . | . . . . . . . . . . . . Robots Melted 3 | . . . . . . 1 . . 2 . . Combat Hostiles 2 | . . . . . . 1 . . 1 . . Parts Melted 24 | . . . . 1 4 . . 6 9 2 2 Heat Transferred 11047 | . . . . 666 931 900 250 1900 3750 1250 1400 Parts Sabotaged . | . . . . . . . . . . . . Parts Stolen . | . . . . . . . . . . . . Parts Stripped . | . . . . . . . . . . . . Power Chain Reactions . | . . . . . . . . . . . . Alert | -11 -10 -9 -9 -9 -9 -7 -7 -7 -7 -7 -7 ------- Run | Yrd Mat Mat Sto Gar Rec Fac Was Fac Gar Fac Gar Maximum Alert Level 4 | . 1 2 1 4 2 3 1 3 4 3 3 Low Security (%) 25 | 100 93 44 20 . . . 61 67 . . . Level 1 15 | . 6 21 79 8 27 8 38 20 . . . Level 2 34 | . . 34 . 12 72 87 . 7 13 75 31 Level 3 16 | . . . . 47 . 4 . 4 38 24 68 Level 4 8 | . . . . 31 . . . . 48 . . Level 5 . | . . . . . . . . . . . . High Security . | . . . . . . . . . . . . Max Security . | . . . . . . . . . . . . Sterilizations 1 | . . 1 . . . . . . . . . Peak Influence 1539 | 10 209 472 356 1319 613 744 276 774 1539 857 894 Initial 807 | . . 81 193 198 593 575 260 26 533 807 456 Average 486 | 3 75 261 283 888 440 491 161 177 1079 585 725 Influence Increases 7061 | 10 535 568 213 1141 466 943 60 1043 1106 468 508 Destroy 0b10 Robot/C 3320 | . 300 400 160 600 60 200 . 480 640 120 360 Destroy 0b10 Robot/NC 175 | 10 25 10 5 15 5 15 . 45 15 20 10 Destroy Leader 488 | . 66 74 42 30 . 50 . 104 40 42 40 Allied During Kill 495 | . . . 6 108 21 21 . 206 121 . 12 Successful Hack 110 | . 19 11 . 30 . 17 . 21 . 12 . Select Force Hacks 380 | . 60 50 . . 240 . . 30 . . . Disable Machine 285 | . . . . 30 15 135 . 75 15 15 . Anti-Garrison Action 450 | . . . . 200 . . . . 200 . 50 Destroy Structure 464 | . 35 8 . 113 13 60 60 67 60 12 36 Advance Influence 400 | . . . . . . 400 . . . . . Partial Spotted 30 | . . . . . . . . 15 15 . . Lose Combat Pursuer 150 | . 30 15 . 15 . 45 . . . 45 . Miscellaneous 314 | . . . . . 112 . . . . 202 . Influence Decreases 6167 | 10 340 304 366 128 1366 618 766 319 329 1355 266 Entered New Map 3111 | . . 114 266 108 726 244 484 12 229 732 196 Time Decay 2191 | 10 330 150 60 . 640 214 262 287 . 238 . Search Patrol Dispatched 100 | . . . . . . 100 . . . . . Lost Part 100 | . 10 40 20 20 . . . . . . 10 Lost Ally 290 | . . . 20 . . 60 20 20 100 10 60 Purge Threat 375 | . . . . . . . . . . 375 . Squads Dispatched 22 | . 4 3 2 . . 2 . 7 . 4 . Investigation 10 | . 4 2 . . . . . 2 . 2 . Extermination 6 | . . . . . . 2 . 3 . 1 . Reinforcement 2 | . . 1 . . . . . . . 1 . Assault . | . . . . . . . . . . . . Garrison 4 | . . . 2 . . . . 2 . . . Intercept . | . . . . . . . . . . . . Searches Triggered 1 | . . . . . . 1 . . . . . Construction Impeded . | . . . . . . . . . . . . Haulers Reinforced . | . . . . . . . . . . . . Active Scanning Responses . | . . . . . . . . . . . . Cargo Convoy Interrupts . | . . . . . . . . . . . . Stealth | -11 -10 -9 -9 -9 -9 -7 -7 -7 -7 -7 -7 --------- Run | Yrd Mat Mat Sto Gar Rec Fac Was Fac Gar Fac Gar Distress Signals 10 | . 1 4 2 . 1 . . 1 . 1 . Communications Jammed 2 | . . . . . . . . . . 2 . Distress Signals 2 | . . . . . . . . . . 2 . Times Spotted 195 | . 21 24 12 25 5 10 6 34 26 12 20 Peak Tracking Total 9 | . 6 9 6 4 4 3 5 4 7 4 5 Tactical Retreats 8 | . 2 1 . 1 . 2 1 . . 1 . Traps | -11 -10 -9 -9 -9 -9 -7 -7 -7 -7 -7 -7 ------- Run | Yrd Mat Mat Sto Gar Rec Fac Was Fac Gar Fac Gar Traps Triggered 8 | . . . . 3 . 1 . . 2 . 2 Indirectly . | . . . . . . . . . . . . Trap Hack Attempts . | . . . . . . . . . . . . Triggered . | . . . . . . . . . . . . Disarmed . | . . . . . . . . . . . . Reprogrammed . | . . . . . . . . . . . . Reused . | . . . . . . . . . . . . Traps Extracted . | . . . . . . . . . . . . Installed . | . . . . . . . . . . . . Triggered . | . . . . . . . . . . . . Machines | -11 -10 -9 -9 -9 -9 -7 -7 -7 -7 -7 -7 ---------- Run | Yrd Mat Mat Sto Gar Rec Fac Was Fac Gar Fac Gar Machines Disabled 28 | . . . . 5 2 9 . 5 5 1 1 Max in Single Turn 3 | . . . . 1 1 . . 3 1 1 1 Garrison Access 4 | . . . . . . 1 . 2 . 1 . Garrison Relay 6 | . . . . 2 . . . . 4 . . Phase Generator 1 | . . . . . . . . . 1 . . Machines Repaired . | . . . . . . . . . . . . Machines Dismantled . | . . . . . . . . . . . . Machines Sabotaged 1 | . . 1 . . . . . . . . . Overloaded Fab Kills . | . . . . . . . . . . . . Hacking | -11 -10 -9 -9 -9 -9 -7 -7 -7 -7 -7 -7 --------- Run | Yrd Mat Mat Sto Gar Rec Fac Was Fac Gar Fac Gar Machines Accessed 44 | . 6 3 1 4 9 3 . 10 . 7 1 Terminals 21 | . 4 3 . 4 . 1 . 5 . 3 1 Fabricators 2 | . . . . . . . . 1 . 1 . Repair Stations . | . . . . . . . . . . . . Recycling Units 10 | . 2 . . . 8 . . . . . . Scanalyzers 3 | . . . . . . 1 . 1 . 1 . Garrison Access 7 | . . . 1 . . 1 . 3 . 2 . Total Hacks 90 | . 15 9 1 6 10 9 . 20 . 17 3 Successful 46 | . 6 4 1 2 10 5 . 12 . 6 . Failed 44 | . 9 5 . 4 . 4 . 8 . 11 3 Catastrophic 10 | . 3 . . 1 . . . 3 . 3 . Database Lockouts . | . . . . . . . . . . . . Manual 51 | . 16 9 . 1 8 4 . 7 . 6 . Terminals 56 | . 13 9 . 6 . 4 . 10 . 11 3 Fabricators 4 | . . . . . . . . 3 . 1 . Repair Stations . | . . . . . . . . . . . . Recycling Units 10 | . 2 . . . 8 . . . . . . Scanalyzers 11 | . . . . . . 4 . 4 . 3 . Garrison Access 7 | . . . 1 . . 1 . 3 . 2 . Terminal Hacks 11 | . 3 1 . 2 2 1 . 1 . 1 . Part Schematic 1 | . 1 . . . . . . . . . . Robot Analysis 2 | . 2 . . . . . . . . . . Branch Access Points 1 | . . 1 . . . . . . . . . Terminal Index 1 | . . . . . . 1 . . . . . Scanalyzer Index 1 | . . . . . . . . . . 1 . Hauler Manifests 1 | . . . . . . . . 1 . . . Patrol Navigation 1 | . . . . 1 . . . . . . . Security Stations 1 | . . . . 1 . . . . . . . Release Object 2 | . . . . . 2 . . . . . . Fabricator Hacks 2 | . . . . . . . . 2 . . . Load Schematic 1 | . . . . . . . . 1 . . . Build 1 | . . . . . . . . 1 . . . Repair Station Hacks . | . . . . . . . . . . . . Recycling Unit Hacks . | . . . . . . . . . . . . Scanalyzer 6 | . . . . . . 2 . 3 . 1 . Insert Component 2 | . . . . . . . . 1 . 1 . Retrieve Study 4 | . . . . . . 2 . 2 . . . Garrison Access Hacks 7 | . . . 1 . . 1 . 3 . 2 . Unlock Access 3 | . . . 1 . . . . 1 . 1 . Seal Access 4 | . . . . . . 1 . 2 . 1 . Unauthorized Hacks 20 | . 3 3 . . 8 1 . 3 . 2 . Terminals 9 | . 1 3 . . . 1 . 2 . 2 . Assimilate 1 | . 1 . . . . . . . . . . Botnet 5 | . . 1 . . . 1 . 2 . 1 . Operators 1 | . . . . . . . . . . 1 . Sabotage 2 | . . 2 . . . . . . . . . Fabricators . | . . . . . . . . . . . . Repair Stations . | . . . . . . . . . . . . Recycling Units 10 | . 2 . . . 8 . . . . . . Tunnel 10 | . 2 . . . 8 . . . . . . Scanalyzers 1 | . . . . . . . . 1 . . . Extract 1 | . . . . . . . . 1 . . . Garrison Access . | . . . . . . . . . . . . Data Cores Recovered 1 | . . . . . . . . 1 . . . Used . | . . . . . . . . . . . . Hacking Detections 24 | . 3 2 1 3 . 1 . 8 . 5 1 Full Trace Events 7 | . 2 1 . . . . . 1 . 2 1 Feedback Events 1 | . 1 . . . . . . . . . . Corruption 1 | . 1 . . . . . . . . . . Feedback Blocked . | . . . . . . . . . . . . Robot Schematics Acquired . | . . . . . . . . . . . . Robots Built . | . . . . . . . . . . . . Authchips . | . . . . . . . . . . . . Time . | . . . . . . . . . . . . Total Robot Build Rating . | . . . . . . . . . . . . Part Schematics Acquired 12 | . 1 . . . . . . 11 . . . Parts Built 2 | . . . . . . . . 2 . . . Authchips . | . . . . . . . . . . . . Time 62 | . . . . . . . . 62 . . . Total Part Build Rating 4 | . . . . . . . . 4 . . . Part Studies Acquired 4 | . . . . . . 2 . 2 . . . Parts Repaired . | . . . . . . . . . . . . Time . | . . . . . . . . . . . . Parts Recycled . | . . . . . . . . . . . . Recycled Matter . | . . . . . . . . . . . . Retrieved Matter . | . . . . . . . . . . . . Retrieved Components . | . . . . . . . . . . . . Parts Scanalyzed . | . . . . . . . . . . . . Part Schematics Acquired . | . . . . . . . . . . . . Parts Damaged . | . . . . . . . . . . . . Bothacking | -11 -10 -9 -9 -9 -9 -7 -7 -7 -7 -7 -7 ------------ Run | Yrd Mat Mat Sto Gar Rec Fac Was Fac Gar Fac Gar Used RIF Installer 2 | . . . . 1 . . . . 1 . . Hotswap 1 | . . . . . . . . . 1 . . Signal Jammer 1 | . . . . . 1 . . . . . . Robots Hacked 14 | . . . . . 1 . . 1 4 3 5 Non-combat 3 | . . . . . . . . . . 3 . Combat 11 | . . . . . 1 . . 1 4 . 5 Robot Hacks Applied 19 | . . . . . 1 . . 1 5 6 6 parse_system 1 | . . . . . . . . . 1 . . drop_inventory 2 | . . . . . . . . . . 2 . purge_threat 3 | . . . . . . . . . . 3 . spike_heat 1 | . . . . . . . . . . . 1 amplify_resonance 4 | . . . . . . . . . 3 . 1 disable_weapons 1 | . . . . . . . . . . . 1 overwrite_iff 1 | . . . . . . . . . 1 . . formatsys_low 1 | . . . . . . . . . . 1 . formatsys_high 5 | . . . . . 1 . . 1 . . 3 Relay Couplers Released 31 | . . . . 13 . 2 . . 16 . . Machine Destruction 28 | . . . . 10 . 2 . . 16 . . Programmers 3 | . . . . 3 . . . . . . . Attached 11 | . . . . . 2 . . 1 3 . 5 Fabnet Peak Effective % . | . . . . . . . . . . . . Robots Rewired 13 | . . . . 2 . . . . 11 . . Allies Hacked 1 | . . . . . . 1 . . . . . Hacks Repelled . | . . . . . . . . . . . . Allies | -11 -10 -9 -9 -9 -9 -7 -7 -7 -7 -7 -7 -------- Run | Yrd Mat Mat Sto Gar Rec Fac Was Fac Gar Fac Gar Total Allies 28 | . . . 2 4 1 . . 5 12 1 3 Largest Group 8 | . . . 2 4 5 4 1 4 8 1 2 Highest-Rated Group 223 | . . . 16 123 138 117 39 164 223 26 64 Highest-Rated Ally 41 | . . . 8 39 39 39 39 41 41 26 32 Total Orders 3 | . . . . . 2 . . . 1 . . STAY 2 | . . . . . 1 . . . 1 . . FOLLOW 1 | . . . . . 1 . . . . . . Ally Attacks 185 | . . . 10 36 27 20 9 24 50 . 9 Total Damage 4477 | . . . 88 567 286 871 122 879 1370 . 294 Kills 45 | . . . 1 8 3 10 . 8 13 . 2 Allies Corrupted . | . . . . . . . . . . . . Allies Melted 1 | . . . . . . . . . 1 . . X0-1V1 Amusement Gains 171 | . 7 95 . . 42 5 . . 20 . 2 Average Entertainment 60 | . 7 15 69 67 90 47 52 47 47 51 51 Good Acts 68 | . . 4 2 10 15 4 8 9 8 4 4 Bad Acts 28 | . . 2 . . 8 2 . 5 1 6 4 Intel | -11 -10 -9 -9 -9 -9 -7 -7 -7 -7 -7 -7 ------- Run | Yrd Mat Mat Sto Gar Rec Fac Was Fac Gar Fac Gar Active Infowar (turns) 1147 | 29 1118 . . . . . . . . . . Seismic 1147 | 29 1118 . . . . . . . . . . Robot Analysis Total 2 | . 2 . . . . . . . . . . Derelict Logs Recovered . | . . . . . . . . . . . . Drone Launches . | . . . . . . . . . . . . Drone Recoveries . | . . . . . . . . . . . . Exploration | -11 -10 -9 -9 -9 -9 -7 -7 -7 -7 -7 -7 ------------- Run | Yrd Mat Mat Sto Gar Rec Fac Was Fac Gar Fac Gar Turns Passed 8859 | 46 1134 302 128 1360 2285 447 573 866 721 515 482 Spaces Moved 5986 | 19 505 119 39 719 796 484 209 1341 784 702 269 Core . | . . . . . . . . . . . . Treads 2213 | 15 478 54 16 719 796 135 . . . . . Legs 4 | 4 . . . . . . . . . . . Wheels 115 | . 27 65 23 . . . . . . . . Hover 541 | . . . . . . 349 192 . . . . Flight 3113 | . . . . . . . 17 1341 784 702 269 Fastest Speed 50 | 120 80 80 95 160 104 69 50 50 50 50 50 Average Speed 87 | 151 155 123 136 160 123 78 67 50 50 50 50 Slowest Speed 240 | 160 160 160 240 160 160 104 69 50 50 50 50 Overloaded Moves . | . . . . . . . . . . . . Propulsion Burnouts . | . . . . . . . . . . . . Robots Hopped 16 | . . . . . . . . 11 1 4 . Potential Cave-ins . | . . . . . . . . . . . . Cave-ins Triggered . | . . . . . . . . . . . . Exploration Rate (%) 49 | 3 87 14 8 86 97 18 85 45 91 21 35 Regions Visited 11 Branch Regions 2 Pre-discovered Areas 10 | . 2 . . . 8 . . . . . . Known Exits Taken 4 | . . 1 1 . . . . 1 . 1 . Unknown Exits Taken 3 | 1 1 . . . 1 . . . . . . Scrap Searched . | . . . . . . . . . . . . Spaces Dug 10 | . . . . . . 1 . 2 . 7 . Terrain Destroyed 422 | . 34 8 . 79 . 1 141 75 60 12 12 Melee 1 | . . . . . . 1 . . . . . Projectile 22 | . . . . . . . . 9 1 12 . AOE 399 | . 34 8 . 79 . . 141 66 59 . 12 Terrain Rammed . | . . . . . . . . . . . . Walls Destroyed . | . . . . . . . . . . . . Machines Disabled . | . . . . . . . . . . . . Actions | -11 -10 -9 -9 -9 -9 -7 -7 -7 -7 -7 -7 --------- Run | Yrd Mat Mat Sto Gar Rec Fac Was Fac Gar Fac Gar Total 9004 | 28 741 209 84 844 2077 536 613 1491 1010 837 534 Wait 2231 | . 152 29 10 22 1230 15 367 85 85 103 133 Move 5948 | 18 504 118 39 718 795 484 208 1320 781 694 269 Hop 15 | . . . . . . . . 10 1 4 . Pick Up 76 | . 10 3 4 10 5 12 5 6 10 4 7 Fast Attach 20 | 1 . 4 3 . 1 2 1 5 . . 3 Attach 25 | 2 1 5 1 2 1 2 . 6 1 . 4 Detach 7 | . . 1 . . . 1 . 4 . . 1 Swap 61 | 1 14 10 5 7 6 1 . 5 6 . 6 Drop 77 | 2 4 2 5 9 14 4 5 13 7 3 9 Fire 492 | 4 55 36 16 56 13 13 25 37 106 29 102 Melee 3 | . . . . . 1 2 . . . . . Ram . | . . . . . . . . . . . . Kick . | . . . . . . . . . . . . Crush 9 | . 1 1 1 2 4 . . . . . . Escape Stasis . | . . . . . . . . . . . . Rewire 19 | . . . . 18 1 . . . . . . Trap . | . . . . . . . . . . . . Miscellaneous 21 | . . . . . 6 . 2 . 13 . . Route ------- -11/Scrapyard -10/Materials (discovered 5 exits: *Mat x3 / [*Min] / [*Sub]) -9/Materials (discovered 3 exits: Min x2 / *Sto) -9/Storage -9/Garrison (discovered 3 exits: *Rec x3) -9/Recycling -7/Factory -7/Waste -7/Factory (discovered 3 exits: [*Fac] / [*Low] / Gar) -7/Garrison (discovered 3 exits: *Fac x3) -7/Factory (discovered 3 exits: [*Fac] / [*Low] / Gar) -7/Garrison History --------- Turn | Location | Event 14 | -11/Scrapyard | Discovered new exit (range 2) 47 | -11/Scrapyard | Entered Materials 228 | -10/Materials | Discovered new exit (range 3) 338 | -10/Materials | Build established: Mutant 398 | -10/Materials | Discovered new exit (range 15) 398 | -10/Materials | Discovered new exit (range 8) 740 | -10/Materials | Discovered new exit (range 5) 747 | -10/Materials | Derelicts attacked the area 1147 | -10/Materials | Discovered new exit (range 9) 1165 | -10/Materials | Prayed at D.C.S.S. Altar Unit 1181 | -10/Materials | Entered another Materials area 1181 | -9/Materials | Evolved 2 slots: Propulsion x1, Weapon x1 1186 | -9/Materials | X0-1V1 released a cloud of subatomizers 1213 | -9/Materials | Identified exit to Mines 1213 | -9/Materials | Identified exit to Storage 1237 | -9/Materials | Melee accuracy permanently improved by X0-1V1 (+5%; -50 max core) 1400 | -9/Materials | Lost 4 parts (1p3n) 1416 | -9/Materials | Destroyed 10 combat bots 1441 | -9/Materials | Build established: Gunner 1478 | -9/Materials | Sterilization system engaged 1478 | -9/Materials | Non-combat units ordered to evacuate 1483 | -9/Materials | Entered Storage 1506 | -9/Storage | Garrison activated, responded to threat 1548 | -9/Storage | X0-1V1 sent allied G-34 Mercenary (x2) 1567 | -9/Storage | Heat dissipation permanently improved by X0-1V1 (+30; -150 max core) 1571 | -9/Storage | Destroyed 7 combat bots 1611 | -9/Storage | Identified exit to Garrison 1611 | -9/Storage | Entered Garrison 1611 | -9/Garrison | Accompanied by 1 ally 1660 | -9/Garrison | Triggered checkpoint 1686 | -9/Garrison | Garrison Relay disabled 1729 | -9/Garrison | Triggered checkpoint 1807 | -9/Garrison | Door terminal overloaded 1807 | -9/Garrison | Rescued a captive Derelict 1808 | -9/Garrison | Rescued a captive Derelict 1858 | -9/Garrison | Build established: Scavenger-Tank 1859 | -9/Garrison | Triggered checkpoint 1886 | -9/Garrison | Triggered checkpoint 1892 | -9/Garrison | Triggered checkpoint 1918 | -9/Garrison | Destroyed 7 combat bots 1957 | -9/Garrison | Installed Relay Interface Framework 1968 | -9/Garrison | Discovered new exit (range 14) 2004 | -9/Garrison | Triggered checkpoint 2020 | -9/Garrison | X0-1V1 activates XOMVISION 2112 | -9/Garrison | Learned Recycling security intel 2263 | -9/Garrison | Discovered new exit (range 11) 2281 | -9/Garrison | Triggered checkpoint 2480 | -9/Garrison | Discovered new exit (range 10) 2492 | -9/Garrison | Core integrity permanently improved by X0-1V1 (+400) 2531 | -9/Garrison | Triggered checkpoint 2636 | -9/Garrison | Garrison Relay disabled 2891 | -9/Garrison | X0-1V1 activates XOMVISION 2971 | -9/Garrison | Entered Recycling 2971 | -9/Recycling | Accompanied by 4 allies 3228 | -9/Recycling | Scanned before Scraplab entrance 3241 | -9/Recycling | X0-1V1 activates XOMVISION 3269 | -9/Recycling | Angered Scraplab inhabitants 3312 | -9/Recycling | Found Prototype Device 3312 | -9/Recycling | Identified Scrap Engine 3608 | -9/Recycling | Expanded RIF knowledge: Signal Jamming 3684 | -9/Recycling | X0-1V1 activates XOMVISION 3724 | -9/Recycling | Build established: Construct 4454 | -9/Recycling | X0-1V1 added 0b10 threat records associated with you (minor) 4469 | -9/Recycling | X0-1V1 rewrote Commando 2a IFF filter 4535 | -9/Recycling | X0-1V1 vaporized surrounding terrain (radius 15) 4984 | -9/Recycling | Discovered new exit (range 16) 5018 | -9/Recycling | X0-1V1 vaporized surrounding terrain (radius 22) 5191 | -9/Recycling | System corruption reached 10% 5256 | -9/Recycling | Entered Factory 5256 | -7/Factory | Accompanied by 4 allies 5256 | -7/Factory | Evolved 4 slots: Propulsion x1, Utility x3 5656 | -7/Factory | Search patrols dispatched 5703 | -7/Factory | Sucked down chute 5703 | -7/Factory | Entered Waste 5727 | -7/Waste | Spotted C-40 Crusher 5728 | -7/Waste | 1 allies followed down the chute 5732 | -7/Waste | Destroyed C-40 Crusher 5752 | -7/Waste | Spotted C-40 Crusher 5753 | -7/Waste | Spotted C-40 Crusher 5755 | -7/Waste | Spotted C-40 Crusher 5757 | -7/Waste | Destroyed C-40 Crusher 5764 | -7/Waste | Spotted C-40 Crusher 5766 | -7/Waste | Destroyed C-40 Crusher 5768 | -7/Waste | Destroyed C-40 Crusher 5799 | -7/Waste | Weapon slot count temporarily expanded by X0-1V1 (+3) 5813 | -7/Waste | Destroyed C-40 Crusher 5827 | -7/Waste | Spotted C-40 Crusher 5831 | -7/Waste | Destroyed C-40 Crusher 5889 | -7/Waste | Discovered new exit (range 13) 6150 | -7/Waste | Weapon slot count reverted to normal (-3) 6276 | -7/Waste | Entered Factory 6432 | -7/Factory | X0-1V1 sent you to a vault 6469 | -7/Factory | X0-1V1 redirected Transport squads to designated parking area 6680 | -7/Factory | Discovered new exit (range 9) 6759 | -7/Factory | Build established: Commander-Construct 6894 | -7/Factory | X0-1V1 foreshadows a heat wave 6954 | -7/Factory | Fabricated Imp. Targeting Computer (x2) 6981 | -7/Factory | Ambient heat levels rising (+10) 7042 | -7/Factory | Garrison activated, responded to threat 7082 | -7/Factory | Discovered new exit (range 14) 7092 | -7/Factory | Ambient heat levels rising (+10) 7127 | -7/Factory | Identified exit to Garrison 7142 | -7/Factory | Entered Garrison 7142 | -7/Garrison | Accompanied by 4 allies 7198 | -7/Garrison | X0-1V1 destroyed Phase Generator 7198 | -7/Garrison | Phase Generator disabled 7225 | -7/Garrison | Triggered checkpoint 7228 | -7/Garrison | Triggered checkpoint 7237 | -7/Garrison | Triggered checkpoint 7250 | -7/Garrison | Triggered checkpoint 7273 | -7/Garrison | Lost 3 allies 7285 | -7/Garrison | Destroyed 10 combat bots 7428 | -7/Garrison | Discovered new exit (range 12) 7505 | -7/Garrison | Triggered checkpoint 7518 | -7/Garrison | Garrison Relay disabled 7544 | -7/Garrison | Build established: Construct 7552 | -7/Garrison | Triggered checkpoint 7572 | -7/Garrison | Triggered checkpoint 7630 | -7/Garrison | Expanded RIF knowledge: Hotswap 7700 | -7/Garrison | Discovered new exit (range 7) 7702 | -7/Garrison | Triggered checkpoint 7733 | -7/Garrison | Garrison Relay disabled 7743 | -7/Garrison | Lost 6 allies 7743 | -7/Garrison | Triggered checkpoint 7778 | -7/Garrison | Triggered checkpoint 7785 | -7/Garrison | Garrison Relay disabled 7818 | -7/Garrison | Garrison Relay disabled 7841 | -7/Garrison | Discovered new exit (range 15) 7863 | -7/Garrison | Entered Factory 7916 | -7/Factory | Discovered new exit (range 14) 8113 | -7/Factory | X0-1V1 activates XOMVISION 8227 | -7/Factory | Discovered new exit (range 16) 8278 | -7/Factory | X0-1V1 added 0b10 threat records associated with you (considerable) 8378 | -7/Factory | Identified exit to Garrison 8378 | -7/Factory | Entered Garrison 8658 | -7/Garrison | Triggered checkpoint 8662 | -7/Garrison | Triggered checkpoint 8679 | -7/Garrison | Triggered checkpoint 8679 | -7/Garrison | Triggered checkpoint 8737 | -7/Garrison | Build established: Bothacker-Construct 8859 | -7/Garrison | Forcibly received Sfc. Transmogifier from X0-1V1 8860 | -7/Garrison | Self-destructed Last Messages --------------- 08816_ C-45 Heavy ARC destroyed. 08821_ Discarded Autogun. 08823_ Acquired 104 matter. 08825_ Acquired 58 matter. 08840_ Sight range returns to normal. 08844_ Jacked Y-54 Guardian... >>spike_heat Tweaking power source heat flow. 08845_ System corrupted: Matter fused (-5). 08853_ Jacked Y-54 Guardian... >>disable_weapons Deactivating 2 weapon systems. 08856_ Imp. Heat Sink melted. 08856_ Y-54 Guardian destroyed. 08858_ X0-1V1: "In a world full of sensor tech, vision is overrated." (-7 sight range) 08859_ X0-1V1: "Let's take things to the next level." 08860_ Sfc. Transmogrifier converts Arm. Scrap Engine into Spectral Analyzer (x2). Map ----- +----------------------------------------------------+ | ?????????????????????????????????????????????????? | | ?????????????????????????????????????????????????? | | ?????????????????????????????????????????????????? | | ?????????????????????????????????????????????????? | | ????????????????????????????????????????????????## | | ????????????????????????????????????????????????# | | ????????????????????????????????????????????????# | | ????????????????????????????????????????????????# | | ????????????????????????????????????????????????# | | ????????????????????????????????????????????????# | | ????????????????????????????????????????????????# | | ????????????????????????????????????????????????# | | ????????????????????????????????????????????????# | | ????????????????????????????????????????????????# | | ????????????????????????????????????????????????# | | ????????????????????????#########???????????????# | | ???????????????????# #???????????????# | | ????????????????????????##"""## #???????????????# | | ??????????????????????????????# #???????????????# | | ??????????????????????????????# #???????????????# | | ??????????????????????????????# #???????????????? | | ??????????????????????????????# #???????????????? | | ??????????##### ############### ##########??????? | | ????????? =%= #???????? | | ????????? [ #???????? | | ????????? @ #???????? | | ??????????????################# ###### #??????## | | ??????????????????????????????# #????# #??????# | | ??????????????????????????????# #????# #??????# | | ??????????????????????????????# ###### #??????# | | ??????????????????????????????# #??????# | | ??????????????????????????????######## #??????# | | ?????????????????????????????????????# #??????# | | ?????????????????????????????????????#" #??????# | | ????????????????????????????????????##% ######## | | ???????????????????????????????????## #% ## | | ???????????????????????????????????# #!|= ## | | ???????????????????????????????????### ! *=* ^ | | ??????????????????????????????? %%[[* ! | | ????????????????????????????????# ## # =* | | ???????????????????????????????????## ! ## | | ????????????????????????????????????## # =%=## | | ???????????????????????????????????# ^^% %= | | ???????????????????????????????????# " | | ???????????????????????????????????# ^ = | | ???????????????????????????????????# ^ %[%= | | ???????????????????????????????????### ## %=## | | ?????????????????????????????????????# ?# "# | | ?????????????????????????????????????# | | ?????????????????????????????????????# | +----------------------------------------------------+ Best States ------------- Heat Dissipation 154 Energy Generation 22 Energy Capacity 2278 Matter Stores 728 Matter Capacity 1100 Sight Range 22 Terrain Scan Density 10 Armor Coverage 150 Resistance: TH 10 Evasion (%) 60 Targeting Accuracy 11 Recoil Reduction 4 Offensive Hacking 10 Relay Coupler Types 2 Relay Coupler Value 99 Item Schematics ----------------- Huge Storage Unit | -10/Materials | Hacked Gatling Laser | -7/Factory | Extracted Energy Filter | -7/Factory | Extracted Great Maul | -7/Factory | Extracted Dynamic Insulation System | -7/Factory | Extracted Field Laser | -7/Factory | Extracted Adv. Treads | -7/Factory | Extracted Plasma Cannon | -7/Factory | Extracted Imp. Targeting Computer | -7/Factory | Extracted Flak Gun | -7/Factory | Extracted Shock Absorption System | -7/Factory | Extracted System Restoration Module | -7/Factory | Extracted Robot Schematics ------------------ None Fabricated ------------ Imp. Targeting Computer | x2 | -7/Factory Repaired ---------- Nothing Studied --------- Xenon Bombardment Thruster | -7/Factory | Hacked Mni. Grenade Launcher | -7/Factory | Hacked Hvy. Missile Launcher | -7/Factory | Hacked Remote Datajack | -7/Factory | Hacked Alien Tech Used ----------------- None Achievements -------------- None Challenges ------------ None Game ------ Seed ZeronetReactionRay Manual? 0 Play Time 01:27:32 Cumulative 684.7 hours Start 2026.09.14 @ 00:17:36 End 2026.09.14 @ 22:35:38 Sessions 5 Manual Loads 0 Difficulty Rogue Special Mode None Game No. 615 Rogue 579 Adventurer 36 Explorer 0 Win Type - Total 8 Types 2/2/0/1/1/0/0/2/0/0 Lore% 86 Gallery% 76 Achievement% 70 Wizard Run 0 Options --------- Layout 2 ASCII 0 Keyboard 0 Movement Numpad Keybinds 0 Fullscreen 1 Font 48/Smallcaps Map View 50x44 Zoom Use 0% Tactical HUD 1 Map Filters NONE Filters NONE Steam 1 RUN: a88dd706-ab04-4666-84ce-dc8705df4ad0